bitfinex-derivatives/quotes_BTCF0:USTF0_20230106
["timestamp","ask_amount","ask_price","bid_price","bid_amount"]
[1673009324597,0.013,16746.0,16745.0,1.41549047]
[1673009324911,0.013,16746.0,16745.0,1.50512266]
[1673009326268,0.013,16746.0,16745.0,1.41549047]
[1673009330268,0.013,16746.0,16745.0,1.50512266]
[1673009330892,0.013,16746.0,16745.0,1.41549047]
[1673009332686,0.013,16746.0,16745.0,1.50512266]
[1673009334688,0.013,16746.0,16745.0,1.41549047]
[1673009335532,0.013,16746.0,16745.0,1.11479047]
[1673009335742,0.013,16746.0,16745.0,0.51759047]
[1673009335952,0.013,16746.0,16745.0,1.11479047]
[1673009336480,0.013,16746.0,16745.0,0.51759047]
[1673009342892,0.013,16746.0,16745.0,0.21689047]
[1673009343108,0.013,16746.0,16745.0,0.51759047]
[1673009346676,0.013,16746.0,16745.0,0.21689047]
[1673009346891,0.013,16746.0,16745.0,0.51759047]
[1673009347102,0.013,16746.0,16745.0,0.21689047]
[1673009347313,0.013,16746.0,16745.0,0.51759047]
[1673009350884,0.013,16746.0,16745.0,0.21689047]
[1673009351095,0.013,16746.0,16745.0,0.51759047]
[1673009360773,0.013,16746.0,16745.0,0.90792266]
[1673009360970,0.013,16746.0,16745.0,0.81829047]
[1673009362656,0.013,16746.0,16745.0,0.90792266]
[1673009363408,0.2,16750.0,16746.0,0.2]
[1673009363602,0.2,16750.0,16747.0,0.3007]
[1673009363814,0.2,16750.0,16748.0,0.1]
[1673009365383,0.2,16750.0,16749.0,0.3007]
[1673009365806,0.2,16751.0,16749.0,0.3007]
[1673009366025,0.136,16750.0,16749.0,0.3007]
[1673009366233,0.2,16751.0,16749.0,0.3007]
[1673009366432,0.136,16750.0,16749.0,0.3037]
[1673009366865,0.123,16750.0,16749.0,0.3037]
[1673009367393,0.05,16750.0,16749.0,0.3047]
[1673009374745,0.05,16750.0,16749.0,0.5047]
[1673009383042,0.05,16750.0,16749.0,0.204]
[1673009384727,0.05,16750.0,16749.0,0.004]
[1673009399758,0.94383578,16750.0,16749.0,0.004]
[1673009412805,1.24453578,16750.0,16749.0,0.004]
[1673009417950,1.24453578,16750.0,16749.0,0.00383467]
[1673009436027,0.94383578,16750.0,16749.0,0.00383467]
[1673009437080,0.94383578,16750.0,16749.0,0.20383467]
[1673009437284,0.94383578,16750.0,16749.0,0.00383467]
[1673009441815,0.94383578,16750.0,16749.0,0.20383467]
[1673009444016,0.94383578,16750.0,16749.0,0.00383467]
[1673009444433,0.94383578,16750.0,16749.0,0.20383467]
[1673009445598,0.94383578,16750.0,16749.0,0.00383467]
[1673009446647,0.94383578,16750.0,16749.0,0.20383467]
[1673009447478,0.94383578,16750.0,16749.0,0.00383467]
[1673009450955,0.94383578,16750.0,16749.0,0.30453467]
[1673009454099,0.94383578,16750.0,16749.0,0.00383467]
[1673009462416,0.94383578,16750.0,16749.0,0.00373553]
[1673009479448,1.24453578,16750.0,16749.0,0.00373553]
[1673009489649,0.94383578,16750.0,16749.0,0.00373553]
[1673009508034,1.24453578,16750.0,16749.0,0.00373553]
[1673009512654,1.54523578,16750.0,16749.0,0.00373553]
[1673009515812,1.54523578,16750.0,16749.0,0.00362489]
[1673009519604,1.24453578,16750.0,16749.0,0.00362489]
[1673009536103,0.94383578,16750.0,16749.0,0.00362489]
[1673009555458,1.24453578,16750.0,16749.0,0.00362489]
[1673009561238,0.94383578,16750.0,16749.0,0.00362489]
[1673009561450,1.24453578,16750.0,16749.0,0.00362489]
[1673009562291,0.94383578,16750.0,16749.0,0.00362489]
[1673009562502,1.24453578,16750.0,16749.0,0.00362489]
[1673009568390,1.24453578,16750.0,16749.0,0.00353215]
[1673009586058,0.94383578,16750.0,16749.0,0.00353215]
[1673009587110,1.24453578,16750.0,16749.0,0.00353215]
[1673009589954,0.94383578,16750.0,16749.0,0.00353215]
[1673009596048,1.24453578,16750.0,16749.0,0.00353215]
[1673009597416,0.94383578,16750.0,16749.0,0.00353215]
[1673009597730,1.24453578,16750.0,16749.0,0.00353215]
[1673009603936,0.94383578,16750.0,16749.0,0.00353215]
[1673009604145,1.24453578,16750.0,16749.0,0.00353215]
[1673009605737,0.94383578,16750.0,16749.0,0.00353215]
[1673009606164,1.24453578,16750.0,16749.0,0.00353215]
[1673009608047,0.94383578,16750.0,16749.0,0.00353215]
[1673009608368,1.24453578,16750.0,16749.0,0.00353215]
[1673009618143,1.24453578,16750.0,16749.0,0.00341129]
[1673009622123,0.94383578,16750.0,16749.0,0.00341129]
[1673009622341,1.24453578,16750.0,16749.0,0.00341129]
[1673009623181,0.94383578,16750.0,16749.0,0.00341129]
[1673009638008,0.94383578,16750.0,16749.0,0.30411129]
[1673009645054,0.94383578,16750.0,16749.0,0.00341129]
[1673009645271,0.94383578,16750.0,16749.0,0.30411129]
[1673009647379,0.05,16750.0,16749.0,0.30411129]
[1673009647786,0.05,16750.0,16749.0,0.39374348]
[1673009648207,0.05,16750.0,16749.0,0.99094348]
[1673009649688,0.005,16750.0,16749.0,1.01253219]
[1673009649897,0.288398,16754.0,16750.0,0.2]
[1673009650103,0.2,16753.0,16752.0,0.3007]
[1673009652215,0.2,16753.0,16752.0,0.3047]
[1673009652430,0.336,16753.0,16752.0,0.3047]
[1673009654630,0.136,16753.0,16752.0,0.3047]
[1673009661580,0.136,16753.0,16752.0,0.004]
[1673009668936,0.136,16753.0,16752.0,0.3047]
[1673009679443,0.128,16753.0,16752.0,0.3067]
[1673009687328,0.128,16753.0,16752.0,0.9039]
[1673009694047,0.128,16753.0,16752.0,0.006]
[1673009694256,0.128,16753.0,16752.0,0.9039]
[1673009698887,0.128,16753.0,16752.0,0.90373795]
[1673009701087,0.128,16753.0,16752.0,0.99337014]
[1673009703830,0.128,16753.0,16752.0,0.90373795]
[1673009711177,0.128,16753.0,16752.0,0.30653795]
[1673009711497,0.128,16753.0,16752.0,0.50653795]
[1673009712436,0.128,16753.0,16752.0,0.20583795]
[1673009712652,0.128,16753.0,16752.0,0.50653795]
[1673009714749,0.128,16753.0,16752.0,0.20583795]
[1673009714958,0.128,16753.0,16752.0,0.50653795]
[1673009730520,0.128,16753.0,16752.0,0.00583795]
[1673009731054,0.128,16753.0,16752.0,0.20583795]
[1673009753550,0.128,16753.0,16752.0,0.20577665]
[1673009763962,0.128,16753.0,16752.0,0.29540884]
[1673009764283,0.128,16753.0,16752.0,0.59610884]
[1673009767007,0.128,16753.0,16752.0,0.50647665]
[1673009774569,0.128,16753.0,16752.0,0.20577665]
[1673009775626,0.128,16753.0,16752.0,0.00577665]
[1673009783727,1.02689219,16753.0,16752.0,0.00577665]
[1673009787089,1.32759219,16753.0,16752.0,0.00577665]
[1673009790781,1.02689219,16753.0,16752.0,0.00577665]
[1673009791094,1.32759219,16753.0,16752.0,0.00577665]
[1673009804559,1.32759219,16753.0,16752.0,0.00561782]
[1673009807188,1.02689219,16753.0,16752.0,0.00561782]
[1673009807398,1.32759219,16753.0,16752.0,0.00561782]
[1673009810341,1.02689219,16753.0,16752.0,0.00561782]
[1673009810673,1.32759219,16753.0,16752.0,0.00561782]
[1673009821691,1.62829219,16753.0,16752.0,0.00561782]
[1673009821900,1.02689219,16753.0,16752.0,0.00561782]
[1673009822112,1.62829219,16753.0,16752.0,0.00561782]
[1673009838433,1.02689219,16753.0,16752.0,0.00561782]
[1673009838645,1.62829219,16753.0,16752.0,0.00561782]
[1673009839800,1.02689219,16753.0,16752.0,0.00561782]
[1673009840019,1.62829219,16753.0,16752.0,0.00561782]
[1673009842851,1.32759219,16753.0,16752.0,0.00561782]
[1673009843070,1.62829219,16753.0,16752.0,0.00561782]
[1673009851456,1.62829219,16753.0,16748.0,0.2]
[1673009851672,1.62829219,16753.0,16746.0,0.6328]
[1673009851870,0.3007,16749.0,16746.0,0.9335]
[1673009852081,0.2,16748.0,16747.0,0.2]
[1673009852294,1.09265783,16748.0,16747.0,0.2]
[1673009853973,1.10665783,16748.0,16747.0,0.227]
[1673009862491,1.10665783,16748.0,16747.0,0.027]
[1673009866163,1.40735783,16748.0,16747.0,0.027]
[1673009871434,0.2,16747.0,16744.0,0.2]
[1673009871645,0.3007,16745.0,16744.0,0.2]
[1673009872176,0.51708198,16745.0,16744.0,0.2]
[1673009872910,0.53008198,16745.0,16744.0,0.203]
[1673009873534,0.53008198,16745.0,16744.0,0.003]
[1673009877010,0.83078198,16745.0,16744.0,0.003]
[1673009879457,0.33008198,16745.0,16744.0,0.003]
[1673009880582,0.33008198,16745.0,16744.0,0.203]
[1673009886051,0.02938198,16745.0,16744.0,0.203]
[1673009890789,0.02938198,16745.0,16744.0,0.003]
[1673009902352,0.02938198,16745.0,16744.0,0.203]
[1673009915393,0.33008198,16745.0,16744.0,0.203]
[1673009916554,0.33008198,16745.0,16744.0,0.003]
[1673009922327,0.02938198,16745.0,16744.0,0.003]
[1673009922532,0.33008198,16745.0,16744.0,0.003]
[1673009925801,0.33008198,16745.0,16744.0,0.0028937]
[1673009927269,0.02938198,16745.0,16744.0,0.0028937]
[1673009927582,0.33008198,16745.0,16744.0,0.0028937]
[1673009927793,0.02938198,16745.0,16744.0,0.0028937]
[1673009928001,0.33008198,16745.0,16744.0,0.0028937]
[1673009929794,0.02938198,16745.0,16744.0,0.0028937]
[1673009930004,0.33008198,16745.0,16744.0,0.0028937]
[1673009932728,0.02938198,16745.0,16744.0,0.0028937]
[1673009932940,0.33008198,16745.0,16744.0,0.0028937]
[1673009950186,0.02938198,16745.0,16744.0,0.0028937]
[1673009950386,0.33008198,16745.0,16744.0,0.0028937]
[1673009953545,0.02938198,16745.0,16744.0,0.0028937]
[1673009953753,0.33008198,16745.0,16744.0,0.0028937]
[1673009956692,0.02938198,16745.0,16744.0,0.0028937]
[1673009957320,0.33008198,16745.0,16744.0,0.0028937]
[1673009965523,0.63078198,16745.0,16744.0,0.0028937]
[1673009969002,0.62378198,16745.0,16744.0,0.002]
[1673009970250,0.82378198,16745.0,16744.0,0.002]
[1673009972575,0.2,16744.0,16739.0,0.7811]
[1673009972784,0.3007,16740.0,16739.0,0.7811]
[1673009972989,0.3007,16740.0,16738.0,0.2]
[1673009973206,1.17903889,16740.0,16738.0,0.2]
[1673009973736,1.17903889,16740.0,16739.0,0.001]
[1673009973936,1.17903889,16740.0,16737.0,0.5007]
[1673009974152,1.19203889,16740.0,16738.0,0.001]
[1673009979620,1.19303889,16740.0,16738.0,0.001]
[1673009983506,0.89233889,16740.0,16738.0,0.201]
[1673009985717,0.89233889,16740.0,16738.0,0.5017]
[1673009988450,0.014,16740.0,16738.0,4.36133219]
[1673009988766,0.002807,16740.0,16738.0,4.36133219]
[1673009988974,0.002807,16740.0,16739.0,0.3]
[1673009990024,0.2,16742.0,16739.0,0.3]
[1673009990345,0.2,16742.0,16741.0,0.2]
[1673009990657,1.07983121,16742.0,16741.0,0.2]
[1673009991491,1.09383121,16742.0,16741.0,0.2]
[1673009992136,1.09383121,16742.0,16740.0,0.5007]
[1673009992339,1.09483121,16742.0,16741.0,0.011]
[1673009992547,1.09483121,16742.0,16741.0,0.211]
[1673009998133,1.09483121,16742.0,16741.0,0.011]
[1673009998554,1.09483121,16742.0,16741.0,0.10052646]
[1673009999718,1.09483121,16742.0,16741.0,0.30052646]
[1673010000239,1.09483121,16742.0,16741.0,0.211]
[1673010000859,1.09483121,16742.0,16741.0,0.3005409]
[1673010001496,1.09283121,16742.0,16741.0,0.2995409]
[1673010001910,1.09283121,16742.0,16741.0,0.21]
[1673010002443,1.09283121,16742.0,16741.0,0.29955329]
[1673010002649,1.09283121,16742.0,16741.0,0.21]
[1673010004857,1.09283121,16742.0,16741.0,0.01]
[1673010007799,1.09283121,16742.0,16741.0,0.09957109]
[1673010008010,1.09283121,16742.0,16741.0,0.01]
[1673010017584,1.39283121,16742.0,16741.0,0.01]
[1673010019477,1.39283121,16742.0,16741.0,0.0027]
[1673010020635,1.09283121,16742.0,16741.0,0.0027]
[1673010021792,1.69423121,16742.0,16741.0,0.0027]
[1673010026613,1.09283121,16742.0,16741.0,0.0027]
[1673010026823,1.69423121,16742.0,16741.0,0.0027]
[1673010049945,0.2,16741.0,16737.0,0.2]
[1673010050151,0.3007,16738.0,16737.0,0.2]
[1673010050576,0.3114887,16738.0,16737.0,0.2]
[1673010051098,0.3254887,16738.0,16737.0,0.2]
[1673010051839,0.3254887,16738.0,16736.0,0.2]
[1673010053098,0.3244887,16738.0,16736.0,0.2]
[1673010055947,0.3244887,16738.0,16734.0,0.3007]
[1673010056153,0.3007,16736.0,16734.0,0.3007]
[1673010056362,0.3007,16736.0,16735.0,0.2]
[1673010057304,0.3137,16736.0,16735.0,0.2]
[1673010058573,1.21121022,16736.0,16735.0,0.2]
[1673010059302,0.91051022,16736.0,16735.0,0.2]
[1673010063296,0.91051022,16736.0,16735.0,0.5]
[1673010063498,0.91051022,16736.0,16735.0,0.2]
[1673010073810,0.91051022,16736.0,16734.0,0.5007]
[1673010074015,0.2,16735.0,16734.0,0.5007]
[1673010074226,0.2,16735.0,16734.0,0.2]
[1673010074755,0.5007,16735.0,16732.0,0.7811]
[1673010074958,0.5007,16735.0,16731.0,0.08957109]
[1673010074959,0.3007,16733.0,16731.0,0.08957109]
[1673010075169,0.3007,16733.0,16729.0,0.39027109]
[1673010075384,0.88717884,16732.0,16729.0,0.39027109]
[1673010075587,0.88717884,16732.0,16729.0,0.3007]
[1673010075802,0.3007,16731.0,16728.0,1.17367109]
[1673010076005,0.3007,16731.0,16727.0,0.22401937]
[1673010076222,0.89396896,16730.0,16728.0,0.3007]
[1673010076844,0.89396896,16730.0,16729.0,0.2]
[1673010077276,0.90696896,16730.0,16729.0,0.2]
[1673010078114,0.90696896,16730.0,16727.0,0.2]
[1673010078532,0.2,16729.0,16727.0,0.2]
[1673010078850,0.8940954,16728.0,16727.0,0.2]
[1673010080529,0.9070954,16728.0,16727.0,0.2]
[1673010090941,0.8940954,16728.0,16727.0,0.2]
[1673010091255,0.9070954,16728.0,16727.0,0.2]
[1673010091465,0.9070954,16728.0,16727.0,0.5007]
[1673010103026,0.9070954,16728.0,16726.0,0.2]
[1673010103340,1.2077954,16728.0,16727.0,0.2]
[1673010105440,1.1947954,16728.0,16727.0,0.2]
[1673010105758,1.2077954,16728.0,16727.0,0.2]
[1673010105968,1.1947954,16728.0,16727.0,0.2]
[1673010106178,1.2077954,16728.0,16727.0,0.2]
[1673010109436,0.013,16728.0,16727.0,0.2]
[1673010109953,0.013,16728.0,16727.0,0.5007]
[1673010110280,0.013,16728.0,16727.0,1.0979]
[1673010110589,0.013,16728.0,16727.0,1.59265448]
[1673010120470,0.013,16728.0,16727.0,1.81674297]
[1673010121311,0.013,16728.0,16727.0,1.59265448]
[1673010121724,0.013,16728.0,16727.0,1.81674297]
[1673010122155,0.013,16728.0,16727.0,1.59265448]
[1673010124246,0.013,16728.0,16727.0,1.81674297]
[1673010124877,0.013,16728.0,16727.0,1.59265448]
[1673010127399,0.313,16728.0,16727.0,1.59265448]
[1673010127610,0.313,16728.0,16727.0,1.0979]
[1673010127820,0.313,16728.0,16727.0,0.7972]
[1673010132443,0.313,16728.0,16727.0,1.29198613]
[1673010133192,0.313,16728.0,16727.0,1.4711071]
[1673010133714,0.313,16728.0,16727.0,0.97632097]
[1673010134028,0.313,16728.0,16727.0,0.7972]
[1673010136027,0.313,16728.0,16727.0,1.47115484]
[1673010136239,0.313,16728.0,16727.0,1.47114938]
[1673010142859,0.313,16728.0,16727.0,1.96594344]
[1673010143392,0.313,16728.0,16727.0,1.47114938]
[1673010143812,0.313,16728.0,16727.0,1.65039848]
[1673010144119,0.313,16728.0,16727.0,1.47114938]
[1673010146640,0.313,16728.0,16727.0,0.67394938]
[1673010147066,1.41040729,16728.0,16727.0,0.67394938]
[1673010149388,2.16040729,16728.0,16727.0,0.42626684]
[1673010150863,1.71040729,16728.0,16727.0,0.42626684]
[1673010152330,0.50509316,16727.0,16720.0,1.41616481]
[1673010152535,0.6007,16721.0,16720.0,1.41616481]
[1673010152859,1.49360683,16721.0,16720.0,1.23691571]
[1673010153271,0.3,16721.0,16720.0,1.23691571]
[1673010153699,0.313,16721.0,16720.0,1.23691571]
[1673010154228,0.6137,16721.0,16720.0,1.23691571]
[1673010154438,0.313,16721.0,16720.0,1.23691571]
[1673010154649,0.313,16721.0,16720.0,1.83411571]
[1673010154856,0.3007,16723.0,16720.0,1.83411571]
[1673010155173,0.013,16721.0,16720.0,1.83411571]
[1673010156005,0.3,16723.0,16720.0,1.83411571]
[1673010156217,0.313,16723.0,16721.0,0.7972]
[1673010156432,0.3,16723.0,16721.0,0.7972]
[1673010156749,0.3,16723.0,16722.0,0.2]
[1673010157272,0.313,16723.0,16722.0,0.2]
[1673010159060,0.314,16723.0,16722.0,0.2]
[1673010162222,0.514,16723.0,16722.0,0.2]
[1673010162432,0.5,16723.0,16722.0,0.2]
[1673010162641,0.514,16723.0,16722.0,0.2]
[1673010163578,0.514,16723.0,16721.0,0.2]
[1673010163796,1.41102463,16723.0,16721.0,0.2]
[1673010164845,0.3007,16722.0,16720.0,1.23691571]
[1673010165057,0.3,16721.0,16720.0,1.23691571]
[1673010165367,1.20012989,16721.0,16720.0,1.23691571]
[1673010166107,1.21412989,16721.0,16720.0,1.23691571]
[1673010168316,1.20012989,16721.0,16720.0,1.23691571]
[1673010168628,1.21412989,16721.0,16720.0,1.23691571]
[1673010170732,0.91412989,16721.0,16720.0,1.23691571]
[1673010170940,1.21412989,16721.0,16720.0,1.23691571]
[1673010171367,1.20012989,16721.0,16720.0,1.23691571]
[1673010171681,1.21412989,16721.0,16720.0,1.23691571]
[1673010175463,0.91412989,16721.0,16720.0,1.23691571]
[1673010175779,0.314,16721.0,16720.0,1.23691571]
[1673010178926,0.014,16721.0,16720.0,1.23691571]
[1673010179557,0.314,16721.0,16720.0,1.23691571]
[1673010183464,0.6147,16721.0,16720.0,1.23691571]
[1673010183671,1.50886837,16721.0,16720.0,1.23691571]
[1673010189340,1.50886837,16721.0,16720.0,0.15838571]
[1673010189553,0.00238656,16720.0,16719.0,0.6185315]
[1673010189763,0.60308656,16720.0,16719.0,0.6185315]
[1673010189969,1.49400466,16720.0,16719.0,0.6185315]
[1673010190396,2.09120466,16720.0,16719.0,0.61135424]
[1673010190602,0.2,16719.0,16717.0,0.0002649]
[1673010190813,0.6007,16718.0,16717.0,0.0002649]
[1673010191031,1.49701404,16718.0,16717.0,0.0002649]
[1673010192280,1.51101404,16718.0,16717.0,0.0002649]
[1673010193760,1.21101404,16718.0,16717.0,0.0002649]
[1673010194079,0.013,16718.0,16717.0,0.0002649]
[1673010194491,0.013,16718.0,16717.0,0.33423201]
[1673010195130,0.013,16718.0,16717.0,0.93143201]
[1673010196270,0.009,16718.0,16717.0,1.01443201]
[1673010196486,0.009,16718.0,16717.0,0.8804649]
[1673010197649,0.009,16718.0,16717.0,1.0147101]
[1673010199111,0.3097,16718.0,16717.0,0.0832649]
[1673010199331,1.40941772,16718.0,16717.0,0.0832649]
[1673010204591,1.70941772,16718.0,16717.0,0.0832649]
[1673010236456,1.50941772,16718.0,16717.0,0.0832649]
[1673010236764,1.50941772,16718.0,16717.0,0.2832649]
[1673010236969,1.50941772,16718.0,16717.0,0.37287616]
[1673010237810,0.6097,16718.0,16717.0,0.50712136]
[1673010238124,0.3097,16718.0,16717.0,0.4175101]
[1673010238973,0.009,16718.0,16717.0,0.4175101]
[1673010239289,0.6007,16720.0,16717.0,1.55480801]
[1673010239498,0.3007,16720.0,16718.0,0.22420357]
[1673010239701,0.6007,16722.0,16720.0,0.2]
[1673010240124,0.6007,16722.0,16720.0,0.28968143]
[1673010240335,0.6007,16722.0,16721.0,0.2]
[1673010240860,0.6087,16722.0,16721.0,0.2]
[1673010241071,0.308,16722.0,16721.0,0.2]
[1673010241282,0.308,16722.0,16721.0,0.28968143]
[1673010241490,0.308,16722.0,16721.0,0.2]
[1673010241700,0.308,16722.0,16721.0,0.28968143]
[1673010241911,0.308,16722.0,16721.0,0.2]
[1673010242233,0.3,16722.0,16721.0,0.42066724]
[1673010242756,0.301,16722.0,16721.0,0.42866724]
[1673010243274,0.501,16722.0,16721.0,0.339]
[1673010246737,0.301,16722.0,16721.0,0.339]
[1673010247270,0.501,16722.0,16721.0,0.339]
[1673010248635,0.5,16722.0,16721.0,0.2]
[1673010248845,0.502,16722.0,16721.0,0.339]
[1673010252331,0.302,16722.0,16721.0,0.339]
[1673010256634,0.272366,16722.0,16721.0,0.339]
[1673010256843,0.272366,16722.0,16721.0,1.32656724]
[1673010256844,0.002,16722.0,16721.0,1.32656724]
[1673010257266,0.002,16722.0,16721.0,0.339]
[1673010257482,0.272366,16722.0,16721.0,0.339]
[1673010260623,0.472366,16722.0,16721.0,0.339]
[1673010263474,0.272366,16722.0,16721.0,0.339]
[1673010272506,0.002,16722.0,16721.0,0.339]
[1673010272721,0.272366,16722.0,16721.0,0.339]
[1673010273253,0.272366,16722.0,16721.0,0.6397]
[1673010273455,0.272366,16722.0,16721.0,1.32656724]
[1673010273882,0.272366,16722.0,16721.0,1.2369]
[1673010274409,0.272366,16722.0,16721.0,1.32656724]
[1673010275455,0.272366,16722.0,16721.0,1.46108938]
[1673010275876,0.272366,16722.0,16721.0,1.32656724]
[1673010279237,0.272366,16722.0,16721.0,1.46108938]
[1673010279873,0.272366,16722.0,16721.0,1.37142214]
[1673010283131,0.272366,16722.0,16721.0,1.55067124]
[1673010283344,0.272366,16722.0,16721.0,1.91111536]
[1673010283558,0.272366,16722.0,16721.0,1.5506398]
[1673010283763,0.272366,16722.0,16721.0,1.91111378]
[1673010283975,0.272366,16722.0,16721.0,1.91111379]
[1673010284188,0.272366,16722.0,16721.0,1.55063964]
[1673010284607,0.272366,16722.0,16721.0,1.37139054]
[1673010285234,0.272366,16722.0,16721.0,1.55063964]
[1673010285556,0.272366,16722.0,16721.0,1.91111263]
[1673010286290,0.272366,16722.0,16721.0,1.55064473]
[1673010286810,0.272366,16722.0,16721.0,1.91111092]
[1673010287025,0.272366,16722.0,16721.0,1.55064318]
[1673010287867,0.272366,16722.0,16721.0,1.55064229]
[1673010288182,0.272366,16722.0,16721.0,1.46105888]
[1673010288590,0.272366,16722.0,16721.0,1.37139319]
[1673010289021,0.272366,16722.0,16721.0,1.07069319]
[1673010292694,0.272366,16722.0,16721.0,1.1154491]
[1673010292910,0.272366,16722.0,16721.0,1.61042327]
[1673010296168,0.272366,16722.0,16721.0,1.83451176]
[1673010296483,0.272366,16722.0,16721.0,5.42526266]
[1673010296680,0.272366,16722.0,16721.0,5.60458101]
[1673010297638,0.272366,16722.0,16721.0,5.42526266]
[1673010298372,0.3007,16725.0,16721.0,5.42526266]
[1673010298574,0.270366,16724.0,16723.0,0.8213533]
[1673010300051,0.273366,16724.0,16723.0,0.8213533]
[1673010300265,0.270366,16724.0,16723.0,0.8213533]
[1673010300474,0.271366,16724.0,16723.0,0.79669198]
[1673010300687,0.271366,16724.0,16723.0,0.88633509]
[1673010300891,0.271366,16724.0,16723.0,0.79669198]
[1673010301209,0.271366,16724.0,16723.0,0.8863528]
[1673010301731,0.271366,16724.0,16723.0,0.75186082]
[1673010302146,0.271366,16724.0,16723.0,0.8863528]
[1673010303417,0.271366,16724.0,16723.0,0.79669198]
[1673010303618,0.271366,16724.0,16723.0,0.88634945]
[1673010304258,0.271366,16724.0,16723.0,0.75185747]
[1673010304462,0.271366,16724.0,16723.0,0.88634945]
[1673010306248,0.271366,16724.0,16723.0,0.79669198]
[1673010307827,0.271366,16724.0,16723.0,0.88633062]
[1673010308344,0.271366,16724.0,16723.0,0.88633096]
[1673010308558,0.271366,16724.0,16723.0,0.79669198]
[1673010308974,0.271366,16724.0,16723.0,0.84152265]
[1673010309189,0.271366,16724.0,16723.0,0.8622]
[1673010310454,0.271366,16724.0,16723.0,1.53643528]
[1673010311713,0.271366,16724.0,16723.0,1.04152265]
[1673010311930,0.271366,16724.0,16723.0,1.5364261]
[1673010314234,0.271366,16724.0,16723.0,1.35710345]
[1673010314450,0.271366,16724.0,16723.0,1.53627433]
[1673010315396,0.271366,16724.0,16723.0,0.99659158]
[1673010316138,0.572066,16724.0,16723.0,0.99659158]
[1673010317925,0.572066,16724.0,16723.0,0.79659158]
[1673010318442,0.572066,16724.0,16723.0,0.8622]
[1673010318654,0.572066,16724.0,16723.0,0.99659158]
[1673010318865,0.572066,16724.0,16723.0,0.8622]
[1673010320133,0.572066,16724.0,16723.0,0.065]
[1673010320655,0.572066,16724.0,16723.0,0.265]
[1673010328009,0.271366,16724.0,16723.0,0.265]
[1673010331057,0.271366,16724.0,16723.0,0.35461914]
[1673010332107,0.271366,16724.0,16723.0,0.48901072]
[1673010332757,0.001,16724.0,16723.0,0.48901072]
[1673010332962,0.271366,16724.0,16723.0,0.48904537]
[1673010333384,0.271366,16724.0,16723.0,0.48904781]
[1673010333699,0.271366,16724.0,16723.0,0.48904775]
[1673010334110,0.271366,16724.0,16723.0,0.78974775]
[1673010335595,0.271366,16724.0,16723.0,1.38694775]
[1673010336852,0.271366,16724.0,16723.0,1.25255617]
[1673010340103,0.271366,16724.0,16723.0,0.95185617]
[1673010341047,0.271366,16724.0,16723.0,0.8622]
[1673010341257,0.271366,16724.0,16723.0,0.95185617]
[1673010344005,0.271366,16724.0,16723.0,1.29729158]
[1673010344627,0.271366,16724.0,16723.0,1.38695181]
[1673010345898,0.271366,16724.0,16723.0,0.95186023]
[1673010346103,0.271366,16724.0,16723.0,0.8622]
[1673010347898,0.271366,16724.0,16723.0,0.95186023]
[1673010348309,0.271366,16724.0,16723.0,0.8622]
[1673010349157,0.271366,16724.0,16723.0,0.86206752]
[1673010351353,0.271366,16724.0,16723.0,0.95172775]
[1673010354304,0.271366,16724.0,16723.0,1.08611933]
[1673010354619,0.271366,16724.0,16723.0,0.95172775]
[1673010361253,0.271366,16724.0,16723.0,1.08611933]
[1673010361466,0.271366,16724.0,16723.0,0.95172775]
[1673010362936,0.271366,16724.0,16723.0,1.08611933]
[1673010364820,0.271366,16724.0,16723.0,0.9964591]
[1673010365457,0.271366,16724.0,16723.0,1.67054712]
[1673010366082,0.271366,16724.0,16723.0,1.17562998]
[1673010366293,0.271366,16724.0,16723.0,1.97124584]
[1673010366930,0.271366,16724.0,16723.0,1.83685426]
[1673010370824,0.001,16724.0,16723.0,1.83685426]
[1673010371037,0.001,16724.0,16723.0,1.88177187]
[1673010371657,0.241905,16726.0,16725.0,0.5972]
[1673010371864,0.241905,16726.0,16725.0,0.93172736]
[1673010372079,0.241905,16726.0,16725.0,1.02141205]
[1673010372920,0.251905,16726.0,16725.0,1.02441205]
[1673010373338,0.251905,16726.0,16725.0,0.88988469]
[1673010373759,0.251905,16726.0,16725.0,1.02441205]
[1673010373975,0.251905,16726.0,16725.0,1.19058469]
[1673010376071,0.251905,16726.0,16725.0,1.1009]
[1673010376388,0.251905,16726.0,16725.0,1.19058469]
[1673010377437,0.251905,16726.0,16725.0,1.32511205]
[1673010377854,0.251905,16726.0,16725.0,1.19058469]
[1673010378502,0.251905,16726.0,16725.0,1.32511205]
[1673010380698,0.251905,16726.0,16725.0,1.1009]
[1673010386685,0.2214,16726.0,16725.0,1.1009]
[1673010386900,0.2214,16726.0,16725.0,1.19058469]
[1673010387739,0.191911,16726.0,16725.0,1.19058469]
[1673010388058,0.01,16726.0,16725.0,1.19058469]
[1673010388260,0.01,16726.0,16725.0,1.23542736]
[1673010388898,0.181911,16728.0,16726.0,0.1]
[1673010389117,0.181911,16728.0,16727.0,0.8979]
[1673010390908,0.181911,16728.0,16727.0,0.9079]
[1673010391324,0.181911,16728.0,16727.0,0.8999]
[1673010396367,0.181911,16728.0,16727.0,1.03409858]
[1673010396580,0.181911,16728.0,16727.0,0.8999]
[1673010397627,0.3007,16730.0,16727.0,0.8999]
[1673010397835,0.3007,16730.0,16728.0,0.93141818]
[1673010398158,0.181911,16729.0,16728.0,0.93141818]
[1673010398368,0.3007,16730.0,16728.0,0.93141818]
[1673010398566,0.3007,16730.0,16729.0,0.2]
[1673010398992,0.482611,16730.0,16729.0,0.2]
[1673010400265,0.482611,16730.0,16729.0,0.21]
[1673010403731,0.3007,16730.0,16729.0,0.21]
[1673010404047,0.482611,16730.0,16729.0,0.21]
[1673010404259,0.3007,16730.0,16729.0,0.21]
[1673010404475,0.482611,16730.0,16729.0,0.21]